fUSD/lending_fUSD_20260116
["ID","MTS","AMOUNT","RATE_DAILY","PERIOD"]
[402128378,1768533059819,-674.16,0.0003589,10]
[402128379,1768533059828,-508.19086157,0.0003589,10]
[402128380,1768533059838,-500.0,0.0003589,10]
[402128381,1768533059848,-500.0,0.0003589,10]
[402128382,1768533059858,-500.0,0.0003589,10]
[402128383,1768533059867,-581.75511371,0.0003589,10]
[402128384,1768533059877,-500.0,0.0003589,10]
[402128385,1768533059886,-500.0,0.0003589,10]
[402128386,1768533059895,-500.0,0.0003589,10]
[402128387,1768533059904,-500.0,0.0003589,10]
[402128388,1768533059914,-500.0,0.0003589,10]
[402128389,1768533059923,-500.0,0.0003589,10]
[402128390,1768533059932,-414.88987842,0.0003589,10]
[402128391,1768533059941,-500.0,0.0003589,10]
[402128392,1768533059950,-500.0,0.0003589,10]
[402128393,1768533059959,-500.0,0.0003589,10]
[402128394,1768533059968,-1562.76,0.0003589,10]
[402128395,1768533059978,-500.0,0.0003589,10]
[402128396,1768533059988,-816.15,0.0003589,10]
[402128397,1768533059999,-626.18,0.0003589,10]
[402128398,1768533060009,-504.48854073,0.0003589,10]
[402128399,1768533060019,-1115.87,0.0003589,10]
[402128400,1768533060029,-562.7990673,0.0003589,10]
[402128401,1768533060039,-500.0,0.0003589,10]
[402128402,1768533060048,-500.0,0.0003589,10]
[402128403,1768533060058,-500.0,0.0003589,10]
[402128404,1768533060067,-548.38,0.0003589,10]
[402128405,1768533060075,-1137.72,0.0003589,5]
[402128406,1768533060084,-894.65,0.0003589,10]
[402128407,1768533060094,-500.0,0.0003589,10]
[402128408,1768533060103,-500.0,0.0003589,10]
[402128409,1768533060120,-957.34,0.0003589,10]
[402128410,1768533060131,-543.64,0.0003589,10]
[402128411,1768533060141,-2074.51,0.0003589,10]
[402128412,1768533060150,-500.0,0.0003589,10]
[402128413,1768533060159,-500.0,0.0003589,10]
[402128414,1768533060169,-500.0,0.0003589,10]
[402128415,1768533060178,-1114.69,0.0003589,10]
[402128416,1768533060188,-903.43,0.0003589,10]
[402128417,1768533060198,-500.0,0.0003589,10]
[402128418,1768533060207,-500.0,0.0003589,10]
[402128419,1768533060217,-853.24,0.0003589,10]
[402128420,1768533060226,-500.0,0.0003589,10]
[402128421,1768533060235,-1053.84,0.0003589,2]
[402128422,1768533060245,-871.33,0.0003589,10]
[402128423,1768533060255,-507.26,0.0003589,10]
[402128424,1768533060265,-592.9,0.0003589,10]
[402128425,1768533060275,-500.0,0.0003589,10]
[402128426,1768533060284,-588.04,0.0003589,10]
[402128427,1768533060296,-500.0,0.0003589,10]
[402128428,1768533060305,-500.0,0.0003589,10]
[402128429,1768533060315,-641.8,0.0003589,10]
[402128430,1768533060325,-500.0,0.0003589,10]
[402128431,1768533060335,-530.8,0.0003589,10]
[402128432,1768533060344,-500.0,0.0003589,10]
[402128433,1768533060354,-500.0,0.0003589,10]
[402128434,1768533060365,-826.43,0.0003589,10]
[402128435,1768533060374,-194.66429504,0.0003589,10]
[402128436,1768533060384,-934.39,0.0003589,10]
[402128437,1768533060393,-631.07,0.0003589,10]
[402128438,1768533060403,-500.0,0.0003589,10]
[402128439,1768533060412,-500.0,0.0003589,10]
[402128440,1768533060421,-944.72,0.0003589,10]
[402128441,1768533060431,-542.23,0.0003589,10]
[402128442,1768533060440,-771.84,0.0003589,10]
[402128443,1768533060449,-500.0,0.0003589,10]
[402128444,1768533060459,-722.76,0.0003589,10]
[402128445,1768533060468,-814.35,0.0003589,10]
[402128446,1768533060477,-1146.99,0.0003589,10]
[402128447,1768533060486,-500.0,0.0003589,10]
[402128448,1768533060495,-500.0,0.0003589,10]
[402128449,1768533060504,-500.0,0.0003589,10]
[402128450,1768533060514,-419.93497677,0.0003589,10]
[402128451,1768533060523,-617.08,0.0003589,10]
[402128452,1768533060532,-772.33,0.0003589,10]
[402128453,1768533060541,-500.0,0.0003589,10]
[402128454,1768533060551,-500.0,0.0003589,10]
[402128455,1768533060560,-322.33559329,0.0003589,10]
[402128456,1768533060570,-500.0,0.0003589,10]
[402128457,1768533060581,-500.0,0.0003589,10]
[402128458,1768533060590,-500.0,0.0003589,10]
[402128459,1768533060601,-500.0,0.0003589,10]
[402128460,1768533060612,-505.48334419,0.0003589,10]
[402128461,1768533060620,-500.0,0.0003589,10]
[402128462,1768533060630,-500.0,0.0003589,10]
[402128463,1768533060640,-1252.63,0.0003589,10]
[402128464,1768533060649,-844.67,0.0003589,10]
[402128465,1768533060659,-171.39609564,0.0003589,10]
[402128466,1768533060670,-500.0,0.0003589,10]
[402128467,1768533060680,-1000.0,0.0003589,10]
[402128468,1768533060690,-1247.89,0.0003589,10]
[402128469,1768533060700,-500.0,0.0003589,10]
[402128470,1768533060711,-500.0,0.0003589,10]
[402128471,1768533060721,-710.69,0.0003589,10]
[402128472,1768533060730,-530.65391682,0.0003589,10]
[402128473,1768533060742,-500.0,0.0003589,10]
[402128474,1768533060751,-543.47,0.0003589,10]
[402128475,1768533060760,-500.0,0.0003589,10]
[402128476,1768533060769,-500.0,0.0003589,10]
[402128477,1768533060778,-500.0,0.0003589,10]
[402128478,1768533060787,-500.0,0.0003589,10]
[402128479,1768533060796,-500.0,0.0003589,10]
[402128480,1768533060805,-500.0,0.0003589,10]
[402128481,1768533060814,-500.0,0.0003589,10]
[402128482,1768533060823,-500.0,0.0003589,10]
[402128483,1768533060833,-500.0,0.0003589,10]
[402128484,1768533060842,-730.02,0.0003589,10]
[402128485,1768533060852,-1044.25,0.0003589,10]
[402128486,1768533060862,-661.2,0.0003589,10]
[402128487,1768533060871,-500.0,0.0003589,10]
[402128488,1768533060880,-500.0,0.0003589,10]
[402128489,1768533060889,-500.0,0.0003589,10]
[402128490,1768533060899,-875.24,0.0003589,10]
[402128491,1768533060909,-638.35,0.0003589,10]
[402128492,1768533060919,-500.0,0.0003589,10]
[402128493,1768533060928,-785.73,0.0003589,10]
[402128494,1768533060939,-500.0,0.0003589,10]
[402128495,1768533060949,-557.51,0.0003589,10]
[402128496,1768533060958,-500.0,0.0003589,10]
[402128497,1768533060968,-528.83,0.0003589,10]
[402128498,1768533060978,-653.73,0.0003589,10]
[402128499,1768533060987,-500.0,0.0003589,10]
[402128500,1768533060996,-512.93,0.0003589,10]
[402128501,1768533061005,-500.0,0.0003589,10]
[402128502,1768533061014,-631.3,0.0003589,10]
[402128503,1768533061023,-500.0,0.0003589,10]
[402128504,1768533061032,-500.0,0.0003589,10]
[402128505,1768533061041,-814.57,0.0003589,10]
[402128506,1768533061051,-500.0,0.0003589,10]
[402128507,1768533061060,-500.0,0.0003589,10]
[402128508,1768533061069,-500.0,0.0003589,10]
[402128509,1768533061078,-594.69,0.0003589,10]
[402128510,1768533061087,-500.0,0.0003589,10]
[402128511,1768533061096,-500.0,0.0003589,10]
[402128512,1768533061105,-896.55,0.0003589,10]
[402128513,1768533061114,-795.8,0.0003589,10]
[402128514,1768533061123,-500.0,0.0003589,10]
[402128515,1768533061132,-517.42,0.0003589,10]
[402128516,1768533061142,-619.7,0.0003589,10]
[402128517,1768533061151,-548.97,0.0003589,10]
[402128518,1768533061160,-500.0,0.0003589,10]
[402128519,1768533061169,-500.0,0.0003589,10]
[402128520,1768533061178,-591.02,0.0003589,10]
[402128521,1768533061187,-606.54,0.0003589,10]
[402128522,1768533061196,-512.39091371,0.0003589,10]
[402128523,1768533061205,-500.0,0.0003589,10]
[402128524,1768533061214,-507.83178485,0.0003589,10]
[402128525,1768533061223,-511.04981406,0.0003589,10]
[402128526,1768533061232,-675.6,0.0003589,10]
[402128527,1768533061243,-1026.38,0.0003589,10]
[402128528,1768533061252,-500.0,0.0003589,10]
[402128529,1768533061262,-530.04,0.0003589,10]
[402128530,1768533061272,-1689.93,0.0003589,10]
[402128531,1768533061283,-500.0,0.0003589,10]
[402128532,1768533061299,-500.0,0.0003589,10]
[402128533,1768533061310,-500.0,0.0003589,10]
[402128534,1768533061321,-500.0,0.0003589,10]
[402128535,1768533061331,-802.54,0.0003589,10]
[402128536,1768533061343,-500.0,0.0003589,10]
[402128537,1768533061558,-500.0,0.0003589,10]
[402128538,1768533061568,-500.0,0.0003589,10]
[402128539,1768533061579,-890.89,0.0003589,10]
[402128540,1768533061588,-500.0,0.0003589,10]
[402128541,1768533061598,-500.0,0.0003589,10]
[402128542,1768533061607,-561.57,0.0003589,10]
[402128543,1768533061618,-500.0,0.0003589,10]
[402128544,1768533061628,-500.0,0.0003589,10]
[402128545,1768533061638,-500.0,0.0003589,10]
[402128546,1768533061650,-500.0,0.0003589,10]
[402128547,1768533061661,-663.6,0.0003589,10]
[402128548,1768533061670,-829.9,0.0003589,10]
[402128549,1768533061680,-500.0,0.0003589,10]
[402128550,1768533061690,-694.91,0.0003589,10]
[402128551,1768533061700,-500.0,0.0003589,10]
[402128552,1768533061710,-506.06110847,0.0003589,10]
[402128553,1768533061721,-673.27,0.0003589,10]
[402128554,1768533061731,-500.0,0.0003589,10]
[402128555,1768533061740,-500.0,0.0003589,10]
[402128556,1768533061749,-500.0,0.0003589,10]
[402128557,1768533061761,-500.0,0.0003589,10]
[402128558,1768533061772,-551.21,0.0003589,10]
[402128559,1768533061782,-601.75,0.0003589,10]
[402128560,1768533061791,-633.17,0.0003589,10]
[402128561,1768533061801,-691.87,0.0003589,10]
[402128562,1768533061811,-500.0,0.0003589,10]
[402128563,1768533061821,-795.96,0.0003589,10]
[402128564,1768533061830,-946.1,0.0003589,10]
[402128565,1768533061841,-1022.34,0.0003589,10]
[402128566,1768533061851,-507.05821772,0.0003589,10]
[402128567,1768533061861,-521.39,0.0003589,10]
[402128568,1768533061873,-500.0,0.0003589,10]
[402128569,1768533061882,-500.0,0.0003589,10]
[402128570,1768533061892,-500.0,0.0003589,10]
[402128571,1768533061901,-500.0,0.0003589,10]
[402128572,1768533061911,-680.62,0.0003589,10]
[402128573,1768533061921,-500.0,0.0003589,10]
[402128574,1768533061930,-500.0,0.0003589,10]
[402128575,1768533061940,-506.49267699,0.0003589,10]
[402128576,1768533061951,-671.14,0.0003589,10]
[402128577,1768533061960,-500.0,0.0003589,10]
[402128578,1768533061969,-500.0,0.0003589,10]
[402128579,1768533061978,-500.0,0.0003589,10]
[402128580,1768533061988,-1253.19,0.0003589,10]
[402128581,1768533061998,-500.0,0.0003589,10]
[402128582,1768533062007,-688.21,0.0003589,10]
[402128583,1768533062016,-500.0,0.0003589,10]
[402128584,1768533062026,-500.0,0.0003589,10]
[402128585,1768533062035,-500.0,0.0003589,10]
[402128586,1768533062046,-573.52,0.0003589,10]
[402128587,1768533062057,-1497.97,0.0003589,10]
[402128588,1768533062067,-572.74,0.0003589,10]
[402128589,1768533062076,-500.0,0.0003589,10]
[402128590,1768533062088,-768.31,0.0003589,10]
[402128591,1768533062098,-500.0,0.0003589,10]
[402128592,1768533062109,-500.0,0.0003589,10]
[402128593,1768533062119,-711.58,0.0003589,10]
[402128594,1768533062129,-540.38402003,0.0003589,10]
[402128595,1768533062139,-696.61,0.0003589,10]
[402128596,1768533062148,-500.0,0.0003589,10]
[402128597,1768533062158,-500.0,0.0003589,10]
[402128598,1768533062167,-500.0,0.0003589,10]
[402128599,1768533062177,-603.27878535,0.0003589,10]
[402128600,1768533062186,-500.0,0.0003589,10]
[402128601,1768533062195,-500.0,0.0003589,10]
[402128602,1768533062205,-500.0,0.0003589,10]
[402128603,1768533062214,-704.02,0.0003589,10]
[402128604,1768533062224,-797.95,0.0003589,10]
[402128605,1768533062233,-502.09787395,0.0003589,10]
[402128606,1768533062243,-537.68,0.0003589,10]
[402128607,1768533062252,-571.19,0.0003589,10]
[402128608,1768533062262,-591.23,0.0003589,10]
[402128609,1768533062271,-500.0,0.0003589,10]
[402128610,1768533062281,-502.09665324,0.0003589,10]
[402128611,1768533062290,-500.0,0.0003589,10]
[402128612,1768533062301,-500.0,0.0003589,10]
[402128613,1768533062310,-772.62,0.0003589,10]
[402128614,1768533062319,-500.0,0.0003589,10]
[402128615,1768533062329,-691.11,0.0003589,10]
[402128616,1768533062339,-800.34,0.0003589,10]
[402128617,1768533062348,-908.75,0.0003589,10]
[402128618,1768533062358,-300.0,0.0003589,2]
[402128619,1768533062367,-500.0,0.0003589,10]
[402128620,1768533062378,-628.54,0.0003589,10]
[402128621,1768533062388,-510.18873639,0.0003589,10]
[402128622,1768533062397,-500.0,0.0003589,10]
[402128623,1768533062407,-507.04931711,0.0003589,10]
[402128624,1768533062417,-500.0,0.0003589,10]
[402128625,1768533062427,-1033.86,0.0003589,10]
[402128626,1768533062435,-500.0,0.0003589,10]
[402128627,1768533062444,-827.14,0.0003589,10]
[402128628,1768533062454,-500.0,0.0003589,10]
[402128629,1768533062464,-500.0,0.0003589,10]
[402128630,1768533062474,-500.0,0.0003589,10]
[402128631,1768533062484,-500.0,0.0003589,10]
[402128632,1768533062493,-510.14457932,0.0003589,10]
[402128633,1768533062503,-167.22803,0.0003589,10]
[402128634,1768533062512,-540.98,0.0003589,10]
[402128635,1768533062524,-1133.3,0.0003589,10]
[402128636,1768533062533,-528.67,0.0003589,10]
[402128637,1768533062544,-500.0,0.0003589,10]
[402128638,1768533062553,-500.0,0.0003589,10]
[402128639,1768533062562,-896.53,0.0003589,10]
[402128640,1768533062572,-1027.56,0.0003589,10]
[402128641,1768533062581,-979.07,0.0003589,10]
[402128642,1768533062590,-187.768818,0.0003589,10]
[402128643,1768533062599,-500.0,0.0003589,10]
[402128644,1768533062609,-1037.69,0.0003589,10]
[402128645,1768533062618,-500.0,0.0003589,10]
[402128646,1768533062628,-694.88,0.0003589,10]
[402128647,1768533062637,-500.0,0.0003589,10]
[402128648,1768533062646,-500.0,0.0003589,10]
[402128649,1768533062655,-500.0,0.0003589,10]
[402128650,1768533062664,-634.26,0.0003589,10]
[402128651,1768533062674,-257.26597899,0.0003589,10]
[402128652,1768533062683,-500.0,0.0003589,10]
[402128653,1768533062692,-561.51540706,0.0003589,10]
[402128654,1768533062701,-616.05,0.0003589,10]
[402128655,1768533062711,-550.72,0.0003589,10]
[402128656,1768533062720,-500.0,0.0003589,10]
[402128657,1768533062730,-500.0,0.0003589,10]
[402128658,1768533062740,-500.0,0.0003589,10]
[402128659,1768533062750,-500.0,0.0003589,10]
[402128660,1768533062760,-500.0,0.0003589,10]
[402128661,1768533062770,-1082.46,0.0003589,10]
[402128662,1768533062780,-500.0,0.0003589,10]
[402128663,1768533062790,-500.0,0.0003589,10]
[402128664,1768533062800,-500.0,0.0003589,10]
[402128665,1768533062809,-500.0,0.0003589,10]
[402128666,1768533062819,-1297.91,0.0003589,10]
[402128667,1768533062829,-701.66,0.0003589,10]
[402128668,1768533062839,-580.51683898,0.0003589,10]
[402128669,1768533062848,-500.0,0.0003589,10]
[402128670,1768533062858,-855.85,0.0003589,10]
[402128671,1768533062867,-500.0,0.0003589,10]
[402128672,1768533062878,-500.0,0.0003589,10]
[402128673,1768533062888,-500.0,0.0003589,10]
[402128674,1768533062898,-500.0,0.0003589,10]
[402128675,1768533062908,-500.0,0.0003589,10]
[402128676,1768533062918,-500.0,0.0003589,10]
[402128677,1768533062928,-500.0,0.0003589,10]
[402128678,1768533062938,-500.0,0.0003589,10]
[402128679,1768533062948,-685.86,0.0003589,10]
[402128680,1768533062958,-632.73,0.0003589,10]
[402128681,1768533062968,-1514.61,0.0003589,10]
[402128682,1768533062978,-864.14,0.0003589,10]
[402128683,1768533062987,-1087.61,0.0003589,10]
[402128684,1768533062997,-594.78,0.0003589,10]
[402128685,1768533063007,-500.0,0.0003589,10]
[402128686,1768533063017,-746.46,0.0003589,10]
[402128687,1768533063026,-509.96187181,0.0003589,10]
[402128688,1768533063036,-500.0,0.0003589,10]
[402128689,1768533063046,-500.0,0.0003589,10]
[402128690,1768533063056,-1061.23,0.0003589,10]
[402128691,1768533063067,-1519.97,0.0003589,10]
[402128692,1768533063076,-946.08,0.0003589,10]
[402128693,1768533063086,-500.0,0.0003589,10]
[402128694,1768533063096,-500.0,0.0003589,10]
[402128695,1768533063106,-500.0,0.0003589,10]
[402128696,1768533063115,-1183.55,0.0003589,10]
[402128697,1768533063125,-817.22,0.0003589,10]
[402128698,1768533063134,-500.0,0.0003589,10]
[402128699,1768533063144,-500.0,0.0003589,10]
[402128700,1768533063153,-503.65300613,0.0003589,10]
[402128701,1768533063162,-500.0,0.0003589,10]
[402128702,1768533063171,-867.35,0.0003589,10]
[402128703,1768533063180,-626.91,0.0003589,10]
[402128704,1768533063190,-668.68,0.0003589,10]
[402128705,1768533063199,-500.0,0.0003589,10]
[402128706,1768533063208,-600.35,0.0003589,10]
[402128707,1768533063217,-1034.79,0.0003589,10]
[402128708,1768533063226,-500.0,0.0003589,10]
[402128709,1768533063235,-500.0,0.0003589,10]
[402128710,1768533063245,-649.29,0.0003589,10]
[402128711,1768533063254,-500.0,0.0003589,10]
[402128712,1768533063263,-500.0,0.0003589,10]
[402128713,1768533063272,-233.55245146,0.0003589,10]
[402128714,1768533063281,-500.0,0.0003589,10]
[402128715,1768533063291,-500.0,0.0003589,10]
[402128716,1768533063304,-591.94,0.0003589,10]
[402128717,1768533063313,-500.0,0.0003589,10]
[402128718,1768533063322,-500.0,0.0003589,10]
[402128719,1768533063332,-507.40552107,0.0003589,10]
[402128720,1768533063342,-951.36,0.0003589,10]
[402128721,1768533063352,-500.0,0.0003589,10]
[402128722,1768533063361,-500.0,0.0003589,10]
[402128723,1768533063372,-500.0,0.0003589,10]
[402128724,1768533063381,-858.34,0.0003589,10]
[402128725,1768533063390,-851.71,0.0003589,10]
[402128726,1768533063400,-376.79553705,0.0003589,10]
[402128727,1768533063409,-518.29700047,0.0003589,10]
[402128728,1768533063419,-500.0,0.0003589,10]
[402128729,1768533063428,-500.0,0.0003589,10]
[402128730,1768533063437,-989.02,0.0003589,10]
[402128731,1768533063447,-1568.25,0.0003589,10]
[402128732,1768533063457,-500.0,0.0003589,10]
[402128733,1768533063467,-500.0,0.0003589,10]
[402128734,1768533063476,-559.63,0.0003589,10]
[402128735,1768533063485,-1194.21,0.0003589,10]
[402128736,1768533063495,-561.07,0.0003589,10]
[402128737,1768533063504,-906.14,0.0003589,10]
[402128738,1768533063514,-507.98417265,0.0003589,10]
[402128739,1768533063524,-834.24,0.0003589,10]
[402128740,1768533063535,-563.17,0.0003589,10]
[402128741,1768533063544,-500.0,0.0003589,10]
[402128742,1768533063554,-500.0,0.0003589,10]
[402128743,1768533063564,-500.0,0.0003589,10]
[402128744,1768533063573,-708.53,0.0003589,10]
[402128745,1768533063583,-500.0,0.0003589,10]
[402128746,1768533063593,-500.0,0.0003589,10]
[402128747,1768533063602,-696.04,0.0003589,10]
[402128748,1768533063611,-500.0,0.0003589,10]
[402128749,1768533063621,-500.0,0.0003589,10]
[402128750,1768533063630,-509.14826463,0.0003589,10]
[402128751,1768533063639,-503.45,0.0003589,10]
[402128752,1768533063649,-500.0,0.0003589,10]
[402128753,1768533063658,-529.01,0.0003589,10]
[402128754,1768533063668,-500.0,0.0003589,10]
[402128755,1768533063677,-500.0,0.0003589,10]
[402128756,1768533063687,-1296.7,0.0003589,10]
[402128757,1768533063697,-1322.15,0.0003589,10]
[402128758,1768533063706,-500.0,0.0003589,10]
[402128759,1768533063715,-500.0,0.0003589,10]
[402128760,1768533063724,-349.92775337,0.0003589,10]
[402128761,1768533063734,-500.0,0.0003589,10]
[402128762,1768533063744,-452.89077906,0.0003589,10]
[402128763,1768533063753,-500.0,0.0003589,10]
[402128764,1768533063763,-500.0,0.0003589,10]
[402128765,1768533063773,-500.0,0.0003589,10]
[402128766,1768533063782,-530.5,0.0003589,10]
[402128767,1768533063792,-500.0,0.0003589,10]
[402128768,1768533063802,-500.0,0.0003589,10]
[402128769,1768533063811,-504.24941436,0.0003589,10]
[402128770,1768533063820,-500.0,0.0003589,10]
[402128771,1768533063830,-1090.11,0.0003589,10]
[402128772,1768533063839,-1009.84,0.0003589,10]
[402128773,1768533063849,-849.22,0.0003589,10]
[402128774,1768533063859,-564.31,0.0003589,10]
[402128775,1768533063868,-881.29,0.0003589,10]
[402128776,1768533063879,-1278.53,0.0003589,10]
[402128777,1768533063888,-500.0,0.0003589,10]
[402128778,1768533063898,-500.0,0.0003589,10]
[402128779,1768533063907,-706.07,0.0003589,10]
[402128780,1768533063916,-500.0,0.0003589,10]
[402128781,1768533063926,-513.28076865,0.0003589,10]
[402128782,1768533063935,-907.93,0.0003589,10]
[402128783,1768533063945,-727.84,0.0003589,10]
[402128784,1768533063954,-500.0,0.0003589,10]
[402128785,1768533063963,-1355.17,0.0003589,10]
[402128786,1768533063973,-500.0,0.0003589,10]
[402128787,1768533063981,-1907.36,0.0003589,10]
[402128788,1768533063991,-1042.78,0.0003589,10]
[402128789,1768533064000,-546.54,0.0003589,10]
[402128790,1768533064009,-500.0,0.0003589,10]
[402128791,1768533064019,-500.0,0.0003589,10]
[402128792,1768533064030,-575.32,0.0003589,10]
[402128793,1768533064040,-500.0,0.0003589,10]
[402128794,1768533064049,-883.3,0.0003589,10]
[402128795,1768533064058,-523.64,0.0003589,10]
[402128796,1768533064068,-1684.63,0.0003589,10]
[402128797,1768533064078,-754.81,0.0003589,10]
[402128798,1768533064087,-526.37,0.0003589,10]
[402128799,1768533064095,-927.81,0.0003589,10]
[402128800,1768533064105,-518.01,0.0003589,10]
[402128801,1768533064114,-591.46,0.0003589,10]
[402128802,1768533064123,-1266.31,0.0003589,10]
[402128803,1768533064132,-1110.62,0.0003589,10]
[402128804,1768533064142,-511.04134465,0.0003589,10]
[402128805,1768533064151,-624.91,0.0003589,10]
[402128806,1768533064160,-505.30867579,0.0003589,10]
[402128807,1768533064169,-1530.07,0.0003589,10]
[402128808,1768533064178,-500.0,0.0003589,10]
[402128809,1768533064187,-500.0,0.0003589,10]
[402128810,1768533064196,-500.0,0.0003589,10]
[402128811,1768533064206,-500.0,0.0003589,10]
[402128812,1768533064215,-1250.28,0.0003589,10]
[402128813,1768533064225,-500.0,0.0003589,10]
[402128814,1768533064234,-271.64530523,0.0003589,10]
[402128815,1768533064243,-1016.17,0.0003589,10]
[402128816,1768533064252,-799.18,0.0003589,10]
[402128817,1768533064261,-865.93,0.0003589,10]
[402128818,1768533064271,-1468.54,0.0003589,10]
[402128819,1768533064280,-500.0,0.0003589,10]
[402128820,1768533064289,-1074.27,0.0003589,10]
[402128821,1768533064300,-500.0,0.0003589,10]
[402128822,1768533064309,-522.41,0.0003589,10]
[402128823,1768533064319,-500.0,0.0003589,10]
[402128824,1768533064328,-981.21,0.0003589,10]
[402128825,1768533064339,-1583.14,0.0003589,10]
[402128826,1768533064348,-833.44,0.0003589,10]
[402128827,1768533064358,-1065.78,0.0003589,10]
[402128828,1768533064369,-711.6,0.0003589,10]
[402128829,1768533064379,-500.0,0.0003589,10]
[402128830,1768533064388,-579.06,0.0003589,10]
[402128831,1768533064398,-828.08,0.0003589,10]
[402128832,1768533064407,-1011.76,0.0003589,10]
[402128833,1768533064416,-500.0,0.0003589,10]
[402128834,1768533064425,-500.0,0.0003589,10]
[402128835,1768533064626,-1440.0,0.0003589,10]
[402128836,1768533064636,-506.03927214,0.0003589,10]
[402128837,1768533064645,-500.0,0.0003589,10]
[402128838,1768533064654,-4536.63,0.0003589,10]
[402128839,1768533064664,-1887.83,0.0003589,10]
[402128840,1768533064680,-500.0,0.0003589,10]
[402128841,1768533064689,-693.78,0.0003589,10]
[402128842,1768533064698,-500.0,0.0003589,10]
[402128843,1768533064707,-659.02,0.0003589,10]
[402128844,1768533064716,-500.0,0.0003589,10]
[402128845,1768533064725,-1142.17,0.0003589,10]
[402128846,1768533064734,-500.0,0.0003589,10]
[402128847,1768533064743,-500.0,0.0003589,10]
[402128848,1768533064752,-500.0,0.0003589,10]
[402128849,1768533064762,-1335.63,0.0003589,10]
[402128850,1768533064772,-754.12,0.0003589,10]
[402128851,1768533064782,-1110.87,0.0003589,10]
[402128852,1768533064792,-500.0,0.0003589,10]
[402128853,1768533064802,-995.22,0.0003589,10]
[402128854,1768533064813,-1211.49,0.0003589,10]
[402128855,1768533064823,-656.16,0.0003589,10]
[402128856,1768533064832,-614.88,0.0003589,10]
[402128857,1768533064841,-2560.08,0.0003589,10]
[402128858,1768533064850,-1098.04,0.0003589,10]
[402128859,1768533064859,-890.1,0.0003589,10]
[402128860,1768533064870,-573.16,0.0003589,10]
[402128861,1768533064879,-883.67,0.0003589,10]
[402128862,1768533064891,-500.0,0.0003589,10]
[402128863,1768533064900,-712.27,0.0003589,10]
[402128864,1768533064909,-500.0,0.0003589,10]
[402128865,1768533064919,-500.0,0.0003589,10]
[402128866,1768533064929,-604.09,0.0003589,10]
[402128867,1768533064938,-500.0,0.0003589,10]
[402128868,1768533064948,-500.0,0.0003589,10]
[402128869,1768533064957,-2111.51,0.0003589,10]
[402128870,1768533064967,-691.96,0.0003589,10]
[402128871,1768533064977,-500.0,0.0003589,10]
[402128872,1768533064986,-593.33,0.0003589,10]
[402128873,1768533064996,-2791.77,0.0003589,10]
[402128874,1768533065005,-500.0,0.0003589,10]
[402128875,1768533065016,-1689.87,0.0003589,10]
[402128876,1768533065025,-583.1,0.0003589,10]
[402128877,1768533065035,-2596.47,0.0003589,10]